bitfinex/quotes_ETHUSD_20250217
["timestamp","ask_amount","ask_price","bid_price","bid_amount"]
[1739773579259,0.273,2685.4,2685.2,0.372416]
[1739773579762,0.05510084,2685.3,2685.2,0.372416]
[1739773580057,0.273,2685.4,2685.2,0.372416]
[1739773580352,0.05510084,2685.3,2685.1,3.72425]
[1739773580658,0.273,2685.4,2685.1,3.72425]
[1739773580879,0.05510084,2685.2,2685.1,3.72425]
[1739773581162,0.273,2685.4,2685.2,3.724]
[1739773581361,0.273,2685.4,2685.2,3.72402]
[1739773581564,0.05510084,2685.3,2685.2,4.468937]
[1739773581859,0.273,2685.4,2685.2,4.468937]
[1739773582061,0.273,2685.4,2685.3,3.72397]
[1739773583137,0.273,2685.4,2685.2,3.7241]
[1739773585454,0.273,2685.4,2684.8,1.72359223]
[1739773585658,0.273,2685.4,2684.9,4.19679922]
[1739773587055,0.05510084,2685.3,2684.9,4.19679922]
[1739773587344,0.5693,2685.2,2684.9,4.19679922]
[1739773587650,0.05514616,2685.1,2684.9,4.19679922]
[1739773587823,0.5693,2685.2,2684.9,4.19679922]
[1739773588023,0.05514616,2685.0,2684.9,4.19679922]
[1739773588422,0.8423,2685.4,2685.0,3.72433]
[1739773588623,0.8423,2685.4,2685.2,3.72409]
[1739773588808,0.8423,2685.4,2685.2,7.44818]
[1739773589008,0.8423,2685.4,2685.2,3.72403]
[1739773589661,0.8423,2685.4,2685.1,4.14388892]
[1739773591955,0.273,2685.4,2685.3,3.72397]
[1739773593891,0.5693,2685.7,2685.2,0.8009]
[1739773594179,0.273,2685.4,2685.3,3.72397]
[1739773597449,0.5693,2686.2,2685.3,3.76120346]
[1739773597687,0.273,2686.1,2686.0,3.723]
[1739773597867,0.5693,2686.2,2686.1,3.72286]
[1739773598214,0.8423,2686.2,2686.0,3.72293]
[1739773598550,0.8423,2686.2,2685.8,4.52408]
[1739773598794,0.8423,2686.2,2685.8,3.72318]
[1739773598999,0.8423,2686.2,2685.6,4.52436]
[1739773599397,1.59453136,2686.2,2685.6,1.62679966]
[1739773599571,1.59453136,2686.2,2685.9,3.72306]
[1739773600085,1.59453136,2686.2,2685.8,3.72326]
[1739773602103,0.05347819,2686.1,2686.0,3.723]
[1739773602257,0.75223136,2686.2,2686.1,3.72286]
[1739773602456,0.75223136,2686.2,2686.1,4.547549]
[1739773602895,0.75223136,2686.2,2686.1,0.824689]
[1739773603702,0.75223136,2686.2,2686.1,4.547549]
[1739773604154,0.75223136,2686.2,2686.1,0.824689]
[1739773605915,0.75223136,2686.2,2685.9,0.8009]
[1739773606093,0.5693,2686.1,2685.8,3.72323]
[1739773606970,0.5693,2686.1,2685.6,7.53127]
[1739773607563,0.5693,2686.1,2685.7,3.7233]
[1739773607762,0.5693,2686.1,2685.7,4.848757]
[1739773607975,0.05394047,2686.0,2685.7,4.848757]
[1739773608195,0.05394047,2686.0,2685.7,1.125457]
[1739773609174,0.05394047,2686.0,2685.7,4.848867]
[1739773609817,0.05394047,2686.0,2685.7,1.125457]
[1739773610213,0.05394047,2686.0,2685.4,3.72373]
[1739773610365,0.5693,2685.9,2685.2,3.72398]
[1739773610761,0.5693,2685.7,2685.0,3.72427]
[1739773611182,0.0540674,2685.6,2685.1,3.72418]
[1739773611383,0.273,2685.5,2685.0,3.72427]
[1739773612322,0.273,2685.5,2685.1,3.72425]
[1739773613777,0.273,2685.5,2685.2,3.72401]
[1739773614018,0.05384984,2685.4,2685.2,3.72401]
[1739773614394,0.05384984,2685.4,2685.1,3.72423]
[1739773614815,0.05384984,2685.4,2684.9,1.28015922]
[1739773615018,0.05384984,2685.4,2685.0,3.72427]
[1739773615604,0.05384984,2685.4,2685.1,3.72417]
[1739773615801,0.05384984,2685.4,2685.1,7.44835]
[1739773616015,0.05384984,2685.4,2685.1,3.72417]
[1739773616734,0.05384984,2685.4,2684.9,1.28015922]
[1739773616905,0.05384984,2685.4,2685.3,3.72397]
[1739773618485,0.05384984,2685.4,2685.2,7.44815]
[1739773618836,0.05384984,2685.4,2685.3,3.72397]
[1739773619019,0.05384984,2685.4,2685.3,4.468772]
[1739773619501,0.273,2685.6,2685.5,3.7237]
[1739773619702,0.32684984,2685.6,2685.5,3.7237]
[1739773621028,0.273,2685.6,2685.5,3.7237]
[1739773621529,5.34,2686.0,2685.9,3.72314]
[1739773621704,0.273,2686.0,2685.9,4.176914]
[1739773622637,0.5693,2686.4,2686.0,3.72287]
[1739773622796,0.273,2686.1,2686.0,3.72291]
[1739773623196,0.273,2686.1,2685.9,0.453774]
[1739773623398,1.02969586,2686.1,2685.9,4.176914]
[1739773623810,1.02969586,2686.1,2685.9,0.453774]
[1739773624010,1.02969586,2686.1,2686.0,4.1407004]
[1739773625846,0.75669586,2686.1,2686.0,4.1407004]
[1739773627353,0.75669586,2686.1,2685.7,4.53793]
[1739773627554,0.75669586,2686.1,2685.8,3.7232]
[1739773627759,0.75669586,2686.1,2685.8,3.72328]
[1739773627956,0.75669586,2686.1,2685.7,4.53793]
[1739773628316,0.5693,2686.0,2685.6,3.72356]
[1739773628517,0.05388613,2685.9,2685.4,3.72375]
[1739773628717,0.05388613,2685.9,2685.2,4.53862]
[1739773628917,0.75669586,2686.1,2684.9,4.05752146]
[1739773628918,0.5693,2685.8,2685.0,3.72436]
[1739773629118,0.05411272,2685.7,2685.0,4.58400815]
[1739773629363,0.05411272,2685.7,2685.1,3.72425]
[1739773629660,0.05411272,2685.7,2685.2,3.7241]
[1739773630061,0.05411272,2685.7,2685.4,3.72381]
[1739773630264,0.05411272,2685.7,2685.0,0.85964815]
[1739773630463,0.5693,2685.8,2685.7,3.72342]
[1739773630778,0.32669577,2685.8,2685.7,3.72342]
[1739773631087,0.32669577,2685.8,2685.6,3.72356]
[1739773631274,0.32669577,2685.8,2685.7,3.72342]
[1739773631479,0.273,2685.8,2685.6,3.72356]
[1739773631791,0.273,2685.8,2685.4,3.72378]
[1739773631950,0.273,2685.8,2685.6,3.72354]
[1739773633097,0.273,2685.8,2685.5,3.72367]
[1739773633299,0.273,2685.8,2685.4,0.73089422]
[1739773633474,0.273,2685.8,2685.5,3.72361]
[1739773633673,0.05369577,2685.7,2685.4,3.72374]
[1739773633891,0.273,2685.8,2685.4,3.72374]
[1739773634065,0.273,2685.8,2685.4,7.44749]
[1739773634401,0.05369577,2685.7,2685.6,3.72356]
[1739773634777,0.273,2685.8,2685.6,3.72356]
[1739773635079,0.05369577,2685.7,2685.5,3.72368]
[1739773635596,0.273,2685.8,2685.5,4.468437]
[1739773636013,0.05371387,2685.7,2685.1,8.48437596]
[1739773636162,0.05371387,2685.7,2685.4,3.72378]
[1739773636364,0.273,2685.8,2685.5,3.72367]
[1739773636589,0.05371387,2685.7,2685.2,3.72401]
[1739773636915,0.05371387,2685.7,2685.6,3.72356]
[1739773637199,0.273,2685.8,2685.5,3.72368]
[1739773637440,0.273,2685.8,2685.6,3.72356]
[1739773637640,0.273,2685.8,2685.7,3.72342]
[1739773639543,0.273,2685.8,2685.6,3.72356]
[1739773639842,0.273,2685.8,2685.3,0.8484236]
[1739773640005,0.273,2685.8,2685.6,3.72346]
[1739773640345,0.5693,2686.0,2685.9,3.72314]
[1739773640548,0.8423,2686.0,2685.9,3.72314]
[1739773641234,0.273,2686.0,2685.9,3.72314]
[1739773641433,0.273,2686.0,2685.8,3.72326]
[1739773641434,0.5693,2686.2,2686.0,3.72293]
[1739773641600,0.273,2686.1,2686.0,3.723]
[1739773643044,0.273,2686.1,2685.9,4.51472]
[1739773643244,0.273,2686.1,2686.0,3.723]
[1739773647210,0.273,2686.1,2686.0,4.467612]
[1739773648146,0.273,2686.1,2686.0,0.744612]
[1739773648303,0.273,2686.1,2685.9,3.72304]
[1739773648508,0.273,2686.1,2686.0,3.723]
[1739773651173,0.273,2686.1,2685.9,3.72312]
[1739773651357,0.5693,2686.0,2685.5,3.72357]
[1739773651559,0.05477426,2685.9,2685.5,3.7236]
[1739773651738,0.05477426,2685.9,2685.7,3.72335]
[1739773651937,0.05477426,2685.9,2685.8,3.72328]
[1739773652422,0.05477426,2685.9,2685.7,7.44668]
[1739773652537,0.05477426,2685.9,2685.7,3.72333]
[1739773652740,0.05477426,2685.9,2685.8,3.72328]
[1739773653540,0.273,2685.9,2685.8,4.549881]
[1739773654591,0.32775614,2685.9,2685.8,4.549881]
[1739773655140,0.05475614,2685.9,2685.8,4.549881]
[1739773655377,0.273,2685.9,2685.8,4.549881]
[1739773655689,0.32775614,2685.9,2685.8,4.549881]
[1739773655981,0.05475614,2685.9,2685.8,4.549881]
[1739773658194,0.273,2686.1,2686.0,3.723]
[1739773658688,0.5693,2686.4,2685.8,0.826601]
[1739773658893,0.273,2686.1,2686.0,3.72287]
[1739773665267,0.273,2686.1,2686.0,4.5501311]
[1739773666286,0.273,2686.1,2686.0,3.72287]
[1739773675020,0.273,2686.1,2684.3,8.87]
[1739773675188,0.5693,2685.4,2684.5,3.72495]
[1739773675388,0.5693,2685.2,2684.3,4.52488]
[1739773675690,0.5693,2685.2,2684.5,3.72502]
[1739773675992,0.5693,2685.2,2684.4,0.452488]
[1739773676191,0.5693,2685.2,2684.5,3.72507]
[1739773676478,0.5693,2685.2,2684.5,3.725]
[1739773677184,0.5693,2685.2,2684.4,0.452488]
[1739773677351,0.5693,2685.2,2684.3,0.7996]
[1739773677565,0.5693,2685.2,2684.1,3.72556]
[1739773677885,0.5693,2685.0,2684.1,3.72556]
[1739773678386,0.05425765,2684.9,2684.1,3.72556]
[1739773678584,0.5693,2684.8,2683.9,3.72586]
[1739773678752,0.05231747,2684.7,2684.0,3.72568]
[1739773679138,0.05231747,2684.7,2684.3,3.72527]
[1739773679336,0.5693,2684.8,2684.3,3.72527]
[1739773679582,0.05231747,2684.7,2684.3,3.72535]
[1739773679791,0.5693,2684.8,2684.6,3.72494]
[1739773680084,0.05231747,2684.7,2684.5,3.72507]
[1739773680386,0.273,2684.6,2684.3,3.72535]
[1739773680686,0.273,2684.6,2684.3,7.45062]
[1739773680888,0.273,2684.6,2684.5,3.72508]
[1739773681890,0.5693,2685.1,2684.7,3.72481]
[1739773682043,0.5693,2685.1,2684.7,3.72473]
[1739773682044,0.273,2685.0,2684.7,3.72473]
[1739773682240,0.32333024,2685.0,2684.7,3.72472]
[1739773683152,0.32333024,2685.0,2684.9,3.72453]
[1739773683354,0.32333024,2685.0,2684.8,3.72465]
[1739773683658,0.32333024,2685.0,2684.7,7.44945]
[1739773683864,0.32333024,2685.0,2684.8,3.72459]
[1739773684072,0.273,2685.0,2684.8,3.72459]
[1739773684265,0.5693,2685.3,2684.4,3.0]
[1739773684554,0.32333024,2685.2,2684.5,3.72498]
[1739773684781,0.273,2685.2,2684.5,3.72498]
[1739773684983,0.273,2685.2,2684.4,3.0]
[1739773684984,0.5693,2685.1,2684.3,3.72527]
[1739773685185,0.0505027,2685.0,2684.3,3.72527]
[1739773685351,3.58516224,2684.9,2684.3,3.72527]
[1739773685551,3.58516224,2684.9,2684.1,0.7659]
[1739773685797,0.0505027,2684.8,2684.4,3.72509]
[1739773686001,0.0505027,2684.8,2684.5,3.72504]
[1739773686916,0.5693,2685.1,2684.3,3.72527]
[1739773687112,0.0505027,2684.7,2684.3,3.72527]
[1739773687312,0.5693,2685.1,2684.4,3.72515]
[1739773687543,0.0505027,2684.6,2684.5,3.72508]
[1739773687732,0.5693,2685.1,2684.4,3.72515]
[1739773688039,0.5693,2685.1,2684.3,3.72527]
[1739773688040,0.0505027,2685.0,2684.7,3.72479]
[1739773688683,0.273,2684.9,2684.7,3.72479]
[1739773689088,0.05045731,2684.8,2684.7,3.72479]
[1739773690219,0.32345731,2684.8,2684.7,4.546353]
[1739773690423,0.273,2684.8,2684.7,4.546353]
[1739773691171,0.273,2684.8,2684.7,0.821563]
[1739773691320,0.273,2684.8,2684.7,3.72481]
[1739773691771,0.273,2684.8,2684.6,4.49076]
[1739773692068,0.273,2684.8,2684.6,8.21563]
[1739773692227,0.273,2684.8,2684.6,4.49076]
[1739773692420,0.273,2684.8,2684.3,4.49126]
[1739773692662,0.05060254,2684.7,2684.4,3.72515]
[1739773693025,0.273,2684.8,2684.4,3.72515]
[1739773694164,0.273,2684.8,2684.3,4.49126]
[1739773694332,0.05057531,2684.7,2684.3,4.49126]
[1739773694537,0.273,2684.8,2684.3,4.49126]
[1739773694734,0.273,2684.8,2684.4,3.72515]
[1739773695851,0.273,2684.8,2684.4,7.45024]
[1739773696051,0.273,2684.8,2684.6,3.72484]
[1739773696443,0.05057531,2684.7,2684.6,3.72484]
[1739773696967,0.273,2684.8,2684.4,7.45026]
[1739773697392,0.273,2684.8,2683.7,3.72611]
[1739773697393,0.5693,2684.5,2683.7,3.72611]
[1739773697695,0.05057531,2684.7,2683.5,3.7264]
[1739773697696,0.5693,2684.2,2683.5,3.7264]
[1739773698080,0.05017589,2684.1,2683.5,3.7264]
[1739773698282,0.273,2684.0,2683.5,3.7264]
[1739773698484,0.273,2684.0,2683.6,3.72633]
[1739773698918,0.5693,2683.9,2683.1,3.72694]
[1739773699216,0.04887737,2683.8,2683.2,3.72688]
[1739773699366,0.5693,2683.9,2683.2,3.72688]
[1739773700296,0.5693,2683.9,2683.3,3.72665]
[1739773701298,0.5693,2683.9,2683.3,3.72664]
[1739773701983,0.5693,2683.9,2683.3,7.4533]
[1739773702184,0.5693,2683.9,2683.3,3.72664]
[1739773703007,0.04887737,2683.8,2683.3,7.45331]
[1739773703202,0.04887737,2683.8,2683.4,3.7266]
[1739773704188,0.04887737,2683.8,2683.2,3.7268]
[1739773704810,0.04887737,2683.8,2683.3,3.72675]
[1739773704976,0.04887737,2683.8,2682.9,0.7979]
[1739773705526,0.04887737,2683.8,2683.2,3.72686]
[1739773705894,0.5693,2683.7,2683.1,3.72694]
[1739773706296,0.5693,2683.7,2683.0,3.72703]
[1739773706512,0.04887737,2683.6,2683.1,3.72693]
[1739773706837,0.04887737,2683.6,2683.2,3.72689]
[1739773706984,0.04887737,2683.6,2683.4,3.72659]
[1739773707180,0.04887737,2683.6,2683.5,3.72647]
[1739773707415,0.273,2683.6,2683.5,5.269676]
[1739773707581,0.32148673,2683.6,2683.5,5.269596]
[1739773708512,0.273,2683.6,2683.5,8.269596]
[1739773709502,0.273,2683.6,2683.5,7.471696]
[1739773709747,0.273,2683.6,2683.5,3.72639]
[1739773710045,0.273,2683.6,2683.5,3.72647]
[1739773710257,0.273,2683.6,2683.4,3.72659]
[1739773710605,0.273,2683.6,2683.4,3.72653]
[1739773711197,0.273,2683.6,2683.2,3.72679]
[1739773711406,0.8423,2683.6,2683.3,3.72668]
[1739773712242,0.8423,2683.6,2683.4,3.72657]
[1739773712427,0.8423,2683.6,2683.5,3.72647]
[1739773713620,0.273,2683.6,2683.5,3.72647]
[1739773715919,0.273,2683.6,2683.5,4.48287]
[1739773716120,0.273,2683.6,2683.5,5.303814]
[1739773716920,0.273,2683.6,2683.5,8.303814]
[1739773717156,0.273,2683.6,2683.5,6.72647]
[1739773718240,0.273,2683.6,2683.3,3.72668]
[1739773718439,0.273,2683.6,2683.4,3.72648]
[1739773718760,0.273,2683.6,2683.3,3.72668]
[1739773718966,0.273,2683.6,2683.5,3.72647]
[1739773719824,0.273,2683.6,2683.3,3.72668]
[1739773720024,0.273,2683.6,2683.3,3.0]
[1739773720255,0.5693,2683.5,2683.3,3.72666]
[1739773720453,0.5693,2683.5,2683.3,3.7267]
[1739773720763,0.04828688,2683.4,2683.3,3.7267]
[1739773721267,0.04828688,2683.4,2683.1,3.0]
[1739773721465,0.04828688,2683.4,2682.8,3.72737]
[1739773721634,0.04828688,2683.4,2683.0,3.72706]
[1739773723063,0.04828688,2683.4,2682.7,0.7564]
[1739773723064,0.04828688,2683.4,2682.9,3.72721]
[1739773723372,0.04828688,2683.4,2682.9,6.72721]
[1739773723546,0.04828688,2683.4,2682.5,3.72782]
[1739773723547,0.5693,2683.2,2682.5,3.72773]
[1739773723897,0.0481052,2683.1,2682.5,3.0]
[1739773724091,0.0481052,2683.1,2683.0,3.72717]
[1739773724250,0.3211052,2683.1,2683.0,3.72717]
[1739773725171,0.3211052,2683.1,2682.9,3.72722]
[1739773725583,0.3211052,2683.1,2682.9,7.45444]
[1739773725777,0.3211052,2683.1,2682.9,3.72721]
[1739773725994,0.3211052,2683.1,2682.9,7.45444]
[1739773726291,0.3211052,2683.1,2683.0,3.72717]
[1739773728591,0.0481052,2683.1,2683.0,3.72717]
[1739773728901,0.3211052,2683.1,2683.0,7.472608]
[1739773729261,0.273,2683.1,2683.0,7.472608]
[1739773731399,0.273,2683.1,2683.0,6.72717]
[1739773731621,0.273,2683.1,2683.0,3.72717]
[1739773737914,0.5693,2683.0,2682.9,3.72721]
[1739773738216,0.5693,2683.0,2682.9,6.72721]
[1739773738383,0.273,2683.1,2683.0,3.72717]
[1739773742037,0.32086893,2683.1,2683.0,3.72717]
[1739773742395,0.5693,2683.0,2682.8,3.72739]
[1739773742597,0.5693,2683.0,2682.3,3.72814]
[1739773742818,0.04786893,2682.9,2682.8,3.72737]
[1739773743020,0.5693,2683.0,2682.8,3.72737]
[1739773743321,0.5693,2683.0,2682.9,3.72731]
[1739773743852,0.5693,2683.0,2682.8,3.72744]
[1739773744032,0.5693,2683.0,2682.8,7.45488]
[1739773744503,0.5693,2683.0,2682.8,3.72744]
[1739773744706,0.5693,2683.0,2682.9,3.72731]
[1739773745057,0.5693,2683.0,2682.8,3.72744]
[1739773745235,0.5693,2683.0,2682.6,3.72763]
[1739773745406,0.5693,2683.0,2682.7,3.72749]
[1739773745855,0.5693,2683.0,2682.7,3.72745]
[1739773747260,5.9093,2683.0,2682.7,3.72745]
[1739773748462,5.9093,2683.0,2682.6,3.72763]
[1739773750712,5.9093,2683.0,2682.6,3.72762]
[1739773751406,5.9093,2683.0,2682.4,3.72791]
[1739773751607,5.9093,2683.0,2682.5,3.7278]
[1739773751811,5.9093,2683.0,2682.4,3.72791]
[1739773752111,5.9093,2683.0,2682.6,3.72771]
[1739773752360,0.04765083,2682.9,2682.6,3.72771]
[1739773753652,0.04765083,2682.9,2682.7,3.72754]
[1739773754068,0.04765083,2682.9,2682.8,3.72744]
[1739773754355,0.32065083,2682.9,2682.8,3.72744]
[1739773754539,0.04765083,2682.9,2682.8,4.41201484]
[1739773754736,0.32065083,2682.9,2682.8,5.21561484]
[1739773755713,0.32065083,2682.9,2682.8,8.21561484]
[1739773756149,0.32065083,2682.9,2682.8,6.72744]
[1739773756327,0.32065083,2682.9,2682.8,3.72744]
[1739773758883,0.32065083,2682.9,2682.8,4.53104]
[1739773759078,0.32065083,2682.9,2682.8,7.53104]
[1739773759583,0.273,2682.9,2682.8,7.53104]
[1739773759741,0.273,2682.9,2682.8,8.656898]
[1739773759926,0.273,2682.9,2682.8,4.53104]
[1739773760992,0.273,2682.9,2682.8,3.72744]
[1739773761135,0.273,2682.9,2682.7,3.72754]
[1739773761486,0.273,2682.9,2682.7,3.72748]
[1739773761733,0.04752357,2682.8,2682.7,3.72748]
[1739773762091,0.04752357,2682.8,2682.5,3.7278]
[1739773762529,0.273,2682.9,2682.6,3.72772]
[1739773762735,0.04736,2682.7,2682.6,3.72772]
[1739773762951,0.273,2682.9,2682.7,3.72751]
[1739773763439,0.04736,2682.8,2682.7,3.72751]
[1739773765530,0.32036,2682.8,2682.7,3.72751]
[1739773768630,0.04736,2682.8,2682.7,4.553393]
[1739773768875,5.34,2683.2,2683.1,3.72703]
[1739773769036,0.32027822,2683.2,2683.1,3.72703]
[1739773774971,0.32027822,2683.2,2683.0,3.72715]
[1739773775166,0.32027822,2683.2,2683.0,3.72706]
[1739773775595,0.32027822,2683.2,2683.1,3.72703]
[1739773777128,0.32027822,2683.2,2682.9,3.72724]
[1739773777433,0.32027822,2683.2,2682.5,0.8157]
[1739773777577,0.32027822,2683.2,2683.0,3.72713]
[1739773777778,0.32027822,2683.2,2683.1,3.72703]
[1739773780475,0.04727822,2683.2,2683.1,3.72703]
[1739773780676,0.273,2683.2,2683.1,3.72703]
[1739773781396,0.5693,2683.7,2683.6,3.72633]
[1739773781598,0.8423,2683.7,2683.6,3.72633]
[1739773781815,0.31908952,2683.7,2683.6,3.72633]
[1739773784323,0.04608952,2683.7,2683.6,3.72633]
[1739773784513,0.31908952,2683.7,2683.6,3.72633]
[1739773784725,0.31908952,2683.7,2683.5,3.72643]
[1739773784726,0.273,2683.7,2683.5,3.72643]
[1739773784904,0.31938048,2683.7,2683.6,3.72633]
[1739773785231,0.04638048,2683.7,2683.6,3.72633]
[1739773785383,0.31938048,2683.7,2683.6,3.72633]
[1739773785589,0.273,2683.7,2683.6,3.72633]
[1739773785793,0.31950775,2683.7,2683.6,3.72633]
[1739773786022,0.31950775,2683.7,2683.6,4.5544016]
[1739773786330,0.31950775,2683.7,2683.6,5.3646016]
[1739773786331,0.04650775,2683.7,2683.6,5.3646016]
[1739773786534,0.31950775,2683.7,2683.6,5.3646016]
[1739773786734,0.273,2683.7,2683.6,5.3646016]
[1739773790667,0.5693,2684.1,2684.0,3.72578]
[1739773790869,0.88901681,2684.1,2684.0,3.72578]
[1739773791353,0.88901681,2684.1,2683.9,3.7259]
[1739773791740,0.88901681,2684.1,2683.9,3.72585]
[1739773793543,0.88901681,2684.1,2683.9,3.72584]
[1739773795690,0.88901681,2684.1,2683.7,3.72609]
[1739773795899,0.5693,2684.0,2683.5,3.72638]
[1739773796399,0.04730778,2683.9,2683.6,6.72626]
[1739773798300,0.04730778,2683.9,2683.3,3.72668]
[1739773798454,0.04730778,2683.9,2683.4,3.72654]
[1739773798641,0.5693,2683.7,2683.2,3.72678]
[1739773798991,0.5693,2683.7,2683.4,3.72656]
[1739773799194,0.04730778,2683.6,2683.4,3.72652]
[1739773799398,0.04730778,2683.6,2683.5,3.72647]
[1739773799597,0.04730778,2683.6,2683.4,3.72652]
[1739773799751,0.04730778,2683.6,2683.5,3.72647]
[1739773801357,0.04730778,2683.6,2683.3,3.72668]
[1739773801583,0.04730778,2683.6,2683.3,7.45331]
[1739773801761,0.04730778,2683.6,2683.4,3.72659]
[1739773801953,0.04730778,2683.6,2683.5,3.72647]
[1739773803202,0.04730778,2683.6,2683.5,4.48317]
[1739773803609,0.32030778,2683.6,2683.5,4.48317]
[1739773804108,0.32030778,2683.6,2683.5,5.304146]
[1739773805509,0.04730778,2683.6,2683.5,8.304146]
[1739773807100,0.04730778,2683.6,2683.4,7.45312]
[1739773807294,0.04730778,2683.6,2683.4,3.72653]
[1739773807494,0.04730778,2683.6,2683.3,3.72673]
[1739773808521,0.04730778,2683.6,2682.8,3.72739]
[1739773808522,0.5693,2683.5,2682.7,0.7567]
[1739773808731,5.9093,2683.5,2682.9,3.72726]
[1739773809231,5.34,2683.5,2682.8,3.72744]
[1739773809372,0.5693,2683.3,2682.6,3.72764]
[1739773809805,0.5693,2683.3,2682.4,3.72793]
[1739773810019,0.5693,2683.3,2682.5,3.72782]
[1739773810475,0.5693,2683.3,2682.6,3.7277]
[1739773811033,0.5693,2683.3,2682.7,3.72754]
[1739773811534,0.5693,2683.3,2682.0,0.73973451]
[1739773811535,0.273,2683.2,2683.1,3.72689]
[1739773812047,5.34,2683.5,2683.3,3.72675]
[1739773812246,0.61660778,2683.6,2683.4,3.72652]
[1739773812536,0.04730778,2683.6,2683.5,3.72647]
[1739773812673,0.32030778,2683.6,2683.5,7.547439]
[1739773813531,0.32030778,2683.6,2683.4,3.72652]
[1739773814935,0.88960778,2683.6,2683.2,6.72684]
[1739773815135,0.88960778,2683.6,2683.2,3.72684]
[1739773815290,0.88960778,2683.6,2683.3,3.72663]
[1739773815487,0.273,2683.6,2683.2,3.72689]
[1739773815725,0.273,2683.6,2683.5,3.72647]
[1739773816142,0.273,2683.6,2683.4,3.72661]
[1739773816337,0.273,2683.6,2683.2,7.4536]
[1739773816523,0.273,2683.6,2683.2,3.7268]
[1739773816726,0.273,2683.6,2683.3,3.72667]
[1739773818021,0.273,2683.6,2683.2,3.7268]
[1739773818197,0.273,2683.6,2683.3,3.72665]
[1739773818393,0.273,2683.6,2683.4,3.72651]
[1739773818642,0.273,2683.6,2683.5,3.72647]
[1739773819547,0.273,2683.6,2683.4,3.72651]
[1739773819839,0.273,2683.6,2683.4,7.45304]
[1739773820043,5.9093,2683.9,2683.4,3.72651]
[1739773820208,0.273,2683.8,2683.5,3.72647]
[1739773820895,0.273,2683.8,2683.4,3.72651]
[1739773821895,0.273,2683.8,2683.5,3.7264]
[1739773822788,0.273,2683.8,2683.4,3.72651]
[1739773822990,0.273,2683.8,2683.5,3.72644]
[1739773823744,0.273,2683.8,2682.8,3.826]
[1739773823946,0.273,2683.8,2683.6,3.72632]
[1739773824448,0.273,2683.7,2683.6,3.72625]
[1739773824813,5.34,2683.9,2683.8,3.72606]
[1739773825007,5.613,2683.9,2683.8,3.72606]
[1739773825222,5.34,2683.9,2683.8,3.72606]
[1739773825427,5.613,2683.9,2683.8,3.72606]
[1739773825693,5.613,2683.9,2683.8,4.471284]
[1739773826403,5.613,2683.9,2683.8,3.72606]
[1739773827298,5.34,2683.9,2683.8,3.72606]
[1739773827503,0.273,2683.9,2683.8,3.72606]
[1739773828432,0.273,2683.9,2683.8,4.55206]
[1739773830638,0.31991687,2683.9,2683.8,4.55206]
[1739773830843,0.31991687,2683.9,2683.8,5.752514]
[1739773834353,0.31991687,2683.9,2683.8,3.72606]
[1739773839578,0.31991687,2683.9,2683.8,3.72606]
[1739773839752,0.31991687,2683.9,2683.8,4.55776]
[1739773841386,0.31991687,2683.9,2683.8,3.72606]
[1739773849069,0.04691687,2683.9,2683.8,3.72606]
[1739773849370,0.273,2684.0,2683.9,3.72592]
[1739773852074,5.34,2684.4,2684.2,3.72538]
[1739773852279,0.273,2684.3,2684.2,3.72538]
[1739773853022,0.5693,2684.9,2684.7,3.72479]
[1739773853226,0.273,2684.8,2684.4,3.72513]
[1739773853525,0.273,2684.8,2684.5,3.72505]
[1739773853879,0.273,2684.8,2684.4,3.72513]
[1739773854405,0.273,2684.8,2684.5,3.72501]
[1739773854611,0.273,2684.8,2684.4,3.72513]
[1739773855027,0.273,2684.8,2684.5,3.72508]
[1739773855872,0.273,2684.8,2684.4,3.72512]
[1739773856035,0.273,2684.8,2684.6,3.72491]
[1739773856214,0.273,2684.7,2684.6,3.72491]
[1739773856584,0.273,2684.7,2684.4,3.72512]
[1739773857009,0.273,2684.7,2684.4,7.45027]
[1739773857219,0.273,2684.7,2684.5,3.72508]
[1739773857420,0.273,2684.7,2684.6,3.72494]
[1739773859932,0.273,2684.7,2684.1,0.7686]
[1739773860230,0.273,2684.7,2683.8,3.72599]
[1739773860231,0.61727114,2684.6,2684.2,3.72543]
[1739773860527,0.61727114,2684.6,2683.9,3.72584]
[1739773860830,0.61727114,2684.6,2683.9,3.72581]
[1739773860978,0.61727114,2684.6,2683.9,3.72579]
[1739773861178,0.61727114,2684.6,2684.0,3.72576]
[1739773861382,0.61727114,2684.6,2683.8,3.72595]
[1739773861826,0.61727114,2684.6,2683.8,7.45194]
[1739773862025,0.5693,2684.5,2683.8,3.72595]
[1739773862613,0.5693,2684.3,2683.9,3.72592]
[1739773862820,0.5693,2684.3,2683.8,7.45192]
[1739773862821,5.9093,2684.3,2683.8,7.45192]
[1739773863143,0.04797114,2684.2,2683.8,3.72595]
[1739773863504,5.9093,2684.3,2683.8,3.72595]
[1739773863704,0.04797114,2684.2,2683.8,3.72595]
[1739773863953,5.9093,2684.3,2683.9,3.72587]
[1739773864166,0.04797114,2684.1,2683.9,3.72583]
[1739773864453,5.9093,2684.3,2684.0,3.72578]
[1739773864601,5.9093,2684.3,2684.0,7.45149]
[1739773864802,5.9093,2684.3,2684.0,3.72571]
[1739773865238,5.9093,2684.3,2683.5,0.7686]
[1739773865615,5.9093,2684.3,2683.6,0.37686]
[1739773865856,5.9093,2684.3,2683.7,3.72617]
[1739773866037,5.9093,2684.3,2683.5,4.49505]
[1739773866038,0.5693,2684.2,2683.5,4.49505]